Cogmind - Beta 12 @@@ ROGUE MODE // 2023.05.03 @ 01:41:10 Player: Vosil Result: Destroyed by G-47 Trooper with Particle Gun Performance ------------- Evolutions (0) 0 Regions Visited (1) 200 Robots Destroyed (10) 50 Value Destroyed (136) 136 Prototype IDs (0) 0 Alien Tech Used (0) 0 Bonus (0) 0 TOTAL SCORE: 386 Bonus ------- None Cogmind --------- Core Integrity 0/250 Matter 214/300 Energy 93/100 System Corruption 0% Temperature Cool (9) Movement Core (100) Ox1 Location -10/Materials Parts ------- > --- POWER (1) -------- (None) > --- PROPULSION (2) --- (None) > --- UTILITY (2) ------ Core Shielding Light Armor Plating > --- WEAPON (2) ------- Datajack > --- INVENTORY (5) ---- Large Storage Unit Improved Terrain Scanner Seismic Detector Peak State ------------ > --- POWER ------------ Light Ion Engine > --- PROPULSION ------- Wheel Wheel > --- UTILITY ---------- Improved Terrain Scanner Seismic Detector > --- WEAPON ----------- Assault Rifle Assault Rifle > --- INVENTORY -------- Mining Laser [Rating: 9] Favorites ----------- Power Light Ion Engine Engine Light Ion Engine Propulsion Wheel Leg Aluminum Leg Wheel Wheel Hover Unit Hover Unit Utility Light Armor Plating Device Seismic Detector Storage Large Storage Unit Protection Light Armor Plating Weapon Assault Rifle Ballistic Gun Assault Rifle Ballistic Cannon Light Cannon Special Weapon Mining Laser Special Melee Weapon Datajack Build | -11 -10 ------- Run | Jun Mat Slots Evolved . | . . Power . | . . Propulsion . | . . Utility . | . . Weapon . | . . Parts Attached 24 | 10 14 Power 1 | 1 . Engine 1 | 1 . Core . | . . Reactor . | . . Propulsion 4 | 2 2 Treads . | . . Leg 1 | . 1 Wheel 2 | 2 . Hover 1 | . 1 Flight . | . . Utility 9 | 2 7 Device 4 | 2 2 Storage 1 | . 1 Processor . | . . Hackware . | . . Protection 4 | . 4 Artifact . | . . Weapon 10 | 5 5 Energy Gun . | . . Energy Cannon . | . . Ballistic Gun 4 | 3 1 Ballistic Cannon 1 | . 1 Launcher . | . . Special Weapon 2 | 2 . Impact Weapon . | . . Slashing Weapon . | . . Piercing Weapon . | . . Special Melee Weapon 3 | . 3 Unidentified Prototypes . | . . Parts Lost 10 | . 10 Power 1 | . 1 Propulsion 2 | . 2 Utility 2 | . 2 Weapon 5 | . 5 Highest Loss Streak 6 | . 6 To Critical Strikes . | . . Average Slot Usage (%) 78 | . 78 Engine 10 | . 10 Leg 7 | . 7 Wheel 7 | . 7 Device 4 | . 4 Protection 21 | . 21 Ballistic Gun 21 | . 21 Ballistic Cannon 1 | . 1 Special Melee Weapon 2 | . 2 Naked Turns 7 | . 7 Heaviest Build 27 | 9 27 Greatest Support 20 | 20 20 Greatest Overweight (x) 1 | . 1 Average Overweight (x) . | . . Largest Inventory Capacity 15 | 5 15 Average Capacity 5 | 5 5 Most Carried 5 | 4 5 Average Carried 3 | 1 4 Final Capacity 5 | 5 5 Final Carried 3 | 1 3 Class Distribution -------------------- 100% | Mutant Dominant Class ---------------- Mutant | -10/Materials Resources | -11 -10 ----------- Run | Jun Mat Matter Collected 556 | 327 229 Remotely . | . . Salvage Created 294 | 107 187 Parts 30 | 16 14 Haulers Intercepted . | . . Recyclers Shooed . | . . Parts Field Recycled . | . . Retrieved Matter . | . . Parts Self-Destructed . | . . Prevented . | . . Kills | -11 -10 ------- Run | Jun Mat Combat Hostiles Destroyed 5 | 1 4 Guns 5 | 1 4 Classes Destroyed 5 | 2 3 Worker 1 | . 1 Tunneler 3 | 3 . Watcher 1 | . 1 Swarmer 3 | . 3 Grunt 2 | 1 1 Best Kill Streak 4 | 4 3 Combat Bots Only 3 | 1 3 Max Kills in Single Turn 2 | 2 1 Gunslinging . | . . Exploded . | . . Melee . | . . Uniques/NPCs Destroyed . | . . Combat | -11 -10 -------- Run | Jun Mat Damage Taken 992 | 12 980 Core 259 | 12 247 Absorbed by Shields . | . . Redirected to Shielding 29 | . 29 Core Remaining (%) 95 | 95 . Volleys Fired 47 | 7 40 Largest 2 | 2 2 Hottest 40 | 40 40 Shots Fired 81 | 13 68 Gun 72 | 13 59 Cannon 9 | . 9 Launcher . | . . Special . | . . Kinetic 81 | 13 68 Thermal . | . . Explosive . | . . Electromagnetic . | . . Robot Hit Streak 5 | 3 5 Robot Miss Streak 5 | 1 5 Penetration Max . | . . Secondary Targets . | . . Shots Hit Robots 37 | 6 31 Core Hits 18 | 5 13 Critical Kills . | . . Critical Parts Destroyed . | . . Critical Strikes . | . . Melee Attacks 3 | . 3 Impact . | . . Slashing . | . . Piercing . | . . Sneak Attacks . | . . Combat Hostiles . | . . Follow-up Attacks . | . . Damage Inflicted 548 | 90 458 Guns 455 | 90 365 Cannons 93 | . 93 Explosions . | . . Melee . | . . Ramming . | . . Kinetic 548 | 90 458 Thermal . | . . Explosive . | . . Electromagnetic . | . . Impact . | . . Slashing . | . . Piercing . | . . Highest Corruption . | . . Average Corruption . | . . Corruption Purged . | . . Corruption Blocked . | . . Overload Shots . | . . Overflow Damage . | . . Projectiles . | . . Explosions . | . . Melee . | . . Knockbacks . | . . Impact . | . . Kinetic . | . . Secondary . | . . Self-Inflicted Damage . | . . Shots . | . . Rammed . | . . Targets Rammed . | . . Kicked . | . . Crushed . | . . Highest Temperature 100 | . 100 Average Temperature 35 | . 35 Received Heat Transfer 522 | 6 516 Siege Activations . | . . Robots Corrupted . | . . Combat Hostiles . | . . Parts Fried . | . . Impact Corruptions . | . . Robots Melted . | . . Combat Hostiles . | . . Parts Melted . | . . Heat Transferred . | . . Parts Sabotaged . | . . Parts Stolen . | . . Parts Stripped . | . . Power Chain Reactions . | . . Missiles Intercepted . | . . Alert | -11 -10 ------- Run | Jun Mat Peak Influence 185 | 35 185 Initial 22 | . 22 Average 77 | 12 96 Maximum Alert Level . | . . Low Security (%) 100 | 100 100 Level 1 . | . . Level 2 . | . . Level 3 . | . . Level 4 . | . . Level 5 . | . . High Security . | . . Max Security . | . . Squads Dispatched 2 | . 2 Investigation . | . . Extermination . | . . Reinforcement 2 | . 2 Assault . | . . Garrison . | . . Intercept . | . . Searches Triggered . | . . Construction Impeded . | . . Haulers Reinforced . | . . Active Scanning Responses . | . . Cargo Convoy Interrupts . | . . Stealth | -11 -10 --------- Run | Jun Mat Distress Signals 1 | . 1 Communications Jammed . | . . Distress Signals . | . . Times Spotted 15 | 1 14 Peak Tracking Total 6 | 1 6 Tactical Retreats 1 | . 1 Traps | -11 -10 ------- Run | Jun Mat Traps Triggered . | . . Indirectly . | . . Trap Hack Attempts . | . . Triggered . | . . Disarmed . | . . Reprogrammed . | . . Reused . | . . Traps Extracted . | . . Installed . | . . Triggered . | . . Machines | -11 -10 ---------- Run | Jun Mat Machines Disabled . | . . Max in Single Turn . | . . Machines Repaired . | . . Machines Sabotaged . | . . Overloaded Fab Kills . | . . Hacking | -11 -10 --------- Run | Jun Mat Machines Accessed . | . . Terminals . | . . Fabricators . | . . Repair Stations . | . . Recycling Units . | . . Scanalyzers . | . . Garrison Access . | . . Total Hacks . | . . Successful . | . . Failed . | . . Catastrophic . | . . Database Lockouts . | . . Manual . | . . Terminals . | . . Fabricators . | . . Repair Stations . | . . Recycling Units . | . . Scanalyzers . | . . Garrison Access . | . . Terminal Hacks . | . . Fabricator Hacks . | . . Repair Station Hacks . | . . Recycling Unit Hacks . | . . Scanalyzer . | . . Garrison Access Hacks . | . . Unauthorized Hacks . | . . Terminals . | . . Fabricators . | . . Repair Stations . | . . Recycling Units . | . . Scanalyzers . | . . Garrison Access . | . . Data Cores Recovered . | . . Used . | . . Hacking Detections . | . . Full Trace Events . | . . Feedback Events . | . . Feedback Blocked . | . . Robot Schematics Acquired . | . . Robots Built . | . . Authchips . | . . Time . | . . Total Robot Build Rating . | . . Part Schematics Acquired . | . . Parts Built . | . . Authchips . | . . Time . | . . Total Part Build Rating . | . . Parts Repaired . | . . Time . | . . Parts Recycled . | . . Recycled Matter . | . . Retrieved Matter . | . . Retrieved Components . | . . Parts Scanalyzed . | . . Part Schematics Acquired . | . . Parts Damaged . | . . Bothacking | -11 -10 ------------ Run | Jun Mat Used RIF Installer . | . . Robots Hacked 2 | . 2 Non-combat . | . . Combat 2 | . 2 Robot Hacks Applied 2 | . 2 parse_system 2 | . 2 Relay Couplers Released . | . . Fabnet Peak Effective % . | . . Robots Rewired . | . . Allies Hacked . | . . Hacks Repelled . | . . Allies | -11 -10 -------- Run | Jun Mat Total Allies . | . . Largest Group . | . . Highest-Rated Group . | . . Highest-Rated Ally . | . . Total Orders . | . . Ally Attacks . | . . Total Damage . | . . Kills . | . . Allies Corrupted . | . . Allies Melted . | . . Intel | -11 -10 ------- Run | Jun Mat Robot Analysis Total . | . . Derelict Logs Recovered . | . . Drone Launches . | . . Drone Recoveries . | . . Exploration | -11 -10 ------------- Run | Jun Mat Turns Passed 525 | 119 406 Spaces Moved 322 | 92 230 Core 93 | 18 75 Treads . | . . Legs 80 | . 80 Wheels 140 | 74 66 Hover 9 | . 9 Flight . | . . Fastest Speed 50 | 50 50 Average Speed 100 | 74 110 Slowest Speed 190 | 80 190 Overloaded Moves . | . . Propulsion Burnouts . | . . Robots Hopped . | . . Cave-ins Triggered . | . . Exploration Rate (%) 15 | 7 23 Regions Visited 1 Branch Regions . Pre-discovered Areas . | . . Known Exits Taken . | . . Unknown Exits Taken 1 | 1 . Scrap Searched . | . . Spaces Dug . | . . Terrain Destroyed . | . . Melee . | . . Projectile . | . . AOE . | . . Terrain Rammed . | . . Walls Destroyed . | . . Machines Disabled . | . . Actions | -11 -10 --------- Run | Jun Mat Total 444 | 131 313 Wait 4 | 3 1 Move 321 | 91 230 Hop . | . . Pick Up 30 | 14 16 Fast Attach 1 | . 1 Attach 15 | 8 7 Detach . | . . Swap 8 | 2 6 Drop 15 | 6 9 Fire 47 | 7 40 Melee 3 | . 3 Ram . | . . Kick . | . . Crush . | . . Escape Stasis . | . . Rewire . | . . Trap . | . . Miscellaneous . | . . Route ------- -11/Junkyard -10/Materials History --------- Turn | Location | Event 5 | -11/Junkyard | Met Revision 17 63 | -11/Junkyard | Discovered new exit (range 8) 120 | -11/Junkyard | Entered Materials 302 | -10/Materials | Build established: Mutant 466 | -10/Materials | Core integrity fell below 50% 472 | -10/Materials | Lost 6 parts (1p1n2u2w) 482 | -10/Materials | Core integrity fell below 20% 511 | -10/Materials | Lost 3 parts (1n2w) 526 | -10/Materials | Destroyed by G-47 Trooper with Particle Gun Last Messages --------------- [Achievement: Storm Trooper] Datajack destroyed. R-06 Scavenger collects Tractor Beam. Hover Unit destroyed. Lgt. Cannon destroyed. Acquired Lgt. Armor Plating. Acquired Datajack. Only a single melee weapon may be active at a time, Datajack automatically deactivated. (Secondary inactive melee weapons have a chance to conduct follow-up attacks, see the manual.) Jacked G-34 Mercenary... Right-click on available options for more info. Keyboard players can use Shift-a~z. >>parse_system Reading system data... Jacked G-47 Trooper... >>parse_system Reading system data... Datajack destroyed. [Achievement: First Step to Greatness] Map ----- +----------------------------------------------------+ | ???????# #?????????????????????????????????????? | | ???????# #?????????????????????????????????????? | | ??????## ##???#######??????????????????????????? | | ??????# ##### #??????###########?????????? | | ??????# #??????# #?????????? | | ??????# #??????# #?????????? | | ??????# % ######## #?????????? | | ??????# ##### # # """"" #?????????? | | ??????### ########+## """ # """"" #?????????? | | ????????# ## %# """ # """"" #?????????? | | ????????# ## / """ # #?????????? | | ????????# ## # #= #?????????? | | ????????# ! ## # #####+#####?????????? | | ????????# *!############/####### #???????????? | | ????????# ^^ #???????????? | | ????????# ^ T #?#?????????? | | ????????+ ^^ #????????#??? | | ????????# ##+################# #??#????????? | | ????????# #??????????????????### #???????????? | | ???????? #????????????????????# #???????????? | | ???????? #????????????????????# #???????????? | | ???????? #????????????????????# ##??????????? | | ????????# #???????#########????# #???????????? | | ????????# ????????# #????# #???????????? | | ????????? ????????# #????# #???????????? | | ????????? ????????# @ #????# #???????????? | | ????????????????????# / ###### ####????????? | | ????????????????????# g# ##???????? | | ????????????????????# ggg #???????? | | ????????????????????# # #???????? | | ????????????????????# """ ###/## #???????? | | ????????????????????# """ ##!! # !#???????? | | ????????????????? ??# """ ## ##### !##???????? | | ????????????????????# ## #???####????????? | | ????????????????????########## #???????????????? | | ?????????????????????????????# ! #??????#????????? | | ??????????????????????????#??# #???????#???????? | | ????????????????????????#????# !#???????????????? | | ?????????????????????????????#####???????????????? | | ???????????????????#?????????????????????????????? | | ???????????????????????????#?????????????????????? | | ?????????????????????????????????????????????????? | | | | | | | | | | | | | | | | | +----------------------------------------------------+ Best States ------------- Heat Dissipation 25 Energy Generation 10 Energy Capacity 125 Matter Stores 300 Matter Capacity 300 Sight Range 16 Terrain Scan Range 16 Terrain Scan Density 10 Armor Coverage 300 Core Shielding 20 Evasion (%) 50 Item Schematics ----------------- None Robot Schematics ------------------ None Fabricated ------------ Nothing Alien Tech Used ----------------- None Achievements -------------- First Step to Greatness Storm Trooper Uninvited Guest Challenges ------------ None Game ------ Seed MediumLauncherConstruct Manual? 0 Play Time 00:35:45 Cumulative 1.1 hours Start 2023.05.03 @ 00:51:01 End 2023.05.03 @ 01:41:10 Sessions 1 Manual Loads 0 Difficulty Rogue Special Mode None Game No. 1 Rogue 1 Adventurer 0 Explorer 0 Win Type - Total 0 Types 0/0/0/0/0/0/0/0/0 Lore% 0 Gallery% 1 Achievement% 1 Wizard Run 0 Options --------- ASCII 0 Keyboard 0 Movement Mouse Keybinds 0 Fullscreen 1 Font 16/Smallcaps Map View 76x50 Tactical HUD 0 Map Filters NONE Filters NONE Steam 1 RUN: 2edbf735-6783-49be-83dc-6e8523a21f5d